fUST/lending_fUST_20240410
["ID","MTS","AMOUNT","RATE_DAILY","PERIOD"]
[322052476,1712728242312,-644.21022522,0.00022739,2]
[322052477,1712728242321,-500.0,0.00022739,2]
[322052478,1712728242330,-500.0,0.00022739,2]
[322052479,1712728242339,-506.14,0.00022739,2]
[322052480,1712728242347,-500.0,0.00022739,2]
[322052481,1712728242358,-500.0,0.00022739,2]
[322052482,1712728242367,-500.0,0.00022739,2]
[322052483,1712728242376,-500.0,0.00022739,2]
[322052484,1712728242386,-500.0,0.00022739,2]
[322052485,1712728242395,-893.37,0.00022739,2]
[322052486,1712728242404,-500.0,0.00022739,2]
[322052487,1712728242413,-500.0,0.00022739,2]
[322052488,1712728242422,-515.17,0.00022739,2]
[322052489,1712728242431,-500.0,0.00022739,2]
[322052490,1712728242440,-500.0,0.00022739,2]
[322052491,1712728242449,-500.0,0.00022739,2]
[322052492,1712728242458,-330.12,0.00022739,2]
[322052493,1712728242467,-500.0,0.00022739,2]
[322052494,1712728242476,-500.0,0.00022739,2]
[322052495,1712728242485,-500.0,0.00022739,2]
[322052496,1712728242495,-151.0,0.00022739,2]
[322052497,1712728242505,-151.0,0.00022739,2]
[322052498,1712728242515,-432.81200396,0.00022739,2]
[322052499,1712728242524,-649.68,0.00022739,2]
[322052500,1712728242533,-500.0,0.00022739,2]
[322052501,1712728242543,-151.0,0.00022739,2]
[322052502,1712728242552,-581.7,0.00022739,2]
[322052503,1712728242561,-151.0,0.00022739,2]
[322052504,1712728242570,-151.0,0.00022739,2]
[322052505,1712728242579,-500.0,0.00022739,2]
[322052506,1712728242589,-2502.2,0.00022739,2]
[322052507,1712728242598,-500.0,0.00022739,2]
[322052508,1712728242609,-500.0,0.00022739,2]
[322052509,1712728242618,-500.0,0.00022739,2]
[322052510,1712728242627,-397.7424633,0.00022739,2]
[322052511,1712728242636,-151.0,0.00022739,2]
[322052512,1712728242645,-500.0,0.00022739,2]
[322052513,1712728242653,-3867.197269,0.00022739,2]
[322052514,1712728242663,-3867.197269,0.00022739,2]
[322052515,1712728242673,-525.52,0.00022739,2]
[322052516,1712728242681,-500.0,0.00022739,2]
[322052517,1712728242690,-642.28,0.00022739,2]
[322052518,1712728242699,-500.0,0.00022739,2]
[322052519,1712728242709,-500.0,0.00022739,2]
[322052520,1712728242718,-634.7734702,0.00022739,2]
[322052521,1712728242727,-317.77372815,0.00022739,2]
[322052522,1712728242736,-962.97,0.00022739,2]
[322052523,1712728242745,-155.90721378,0.0002275,2]
[322052524,1712728242754,-1094.78620314,0.00022845,2]
[322052525,1712728242764,-155.90721378,0.0002301,2]
[322052526,1712728242773,-500.0,0.00023012,2]
[322052527,1712728242782,-500.0,0.00023012,2]
[322052528,1712728242791,-151.0,0.00023012,2]
[322052529,1712728242800,-394.908426,0.00023012,2]
[322052530,1712728242809,-394.908426,0.00023012,2]
[322052531,1712728242819,-151.0,0.00023012,2]
[322052532,1712728242828,-670.51,0.00023012,2]
[322052533,1712728242837,-500.0,0.00023012,2]
[322052534,1712728242845,-500.0,0.00023012,2]
[322052535,1712728242856,-500.0,0.00023012,2]
[322052536,1712728242865,-500.0,0.00023012,2]
[322052537,1712728242874,-500.0,0.00023013,2]
[322052538,1712728242883,-500.0,0.00023013,2]
[322052539,1712728242892,-500.0,0.00023013,2]
[322052540,1712728242902,-500.0,0.00023013,2]
[322052541,1712728242911,-500.0,0.00023013,2]
[322052542,1712728242920,-500.0,0.00023013,2]
[322052543,1712728242929,-506.14,0.00023013,2]
[322052544,1712728242938,-151.0,0.00023013,2]
[322052545,1712728242948,-500.0,0.00023013,2]
[322052546,1712728242957,-500.0,0.00023013,2]
[322052547,1712728242966,-500.0,0.00023013,2]
[322052548,1712728242978,-500.0,0.00023013,2]
[322052549,1712728242987,-151.0,0.00023013,2]
[322052550,1712728242996,-500.0,0.00023013,2]
[322052551,1712728243006,-893.37,0.00023013,2]
[322052552,1712728243015,-500.0,0.00023013,2]
[322052553,1712728243025,-500.0,0.00023013,2]
[322052555,1712728243034,-515.17,0.00023013,2]
[322052557,1712728243044,-500.0,0.00023013,2]
[322052559,1712728243053,-500.0,0.00023013,2]
[322052560,1712728243062,-500.0,0.00023013,2]
[322052561,1712728243072,-500.0,0.00023013,2]
[322052562,1712728243082,-500.0,0.00023013,2]
[322052563,1712728243091,-649.68,0.00023013,2]
[322052564,1712728243101,-500.0,0.00023013,2]
[322052565,1712728243112,-581.7,0.00023013,2]
[322052566,1712728243121,-500.0,0.00023013,2]
[322052567,1712728243131,-2502.2,0.00023013,2]
[322052568,1712728243141,-500.0,0.00023013,2]
[322052569,1712728243150,-500.0,0.00023013,2]
[322052570,1712728243160,-500.0,0.00023013,2]
[322052571,1712728243169,-500.0,0.00023013,2]
[322052572,1712728243178,-151.0,0.00023013,2]
[322052573,1712728243187,-525.52,0.00023013,2]
[322052575,1712728243196,-500.0,0.00023013,2]
[322052576,1712728243207,-500.0,0.00023013,2]
[322052577,1712728243216,-500.0,0.00023013,2]
[322052578,1712728243226,-213.63436,0.00023013,2]
[322052579,1712728243236,-962.97,0.00023013,2]
[322052580,1712728243246,-283.42171032,0.00023186,2]
[322052582,1712728243255,-1094.78620314,0.00023187,2]
[322052584,1712728243265,-155.90721378,0.0002327,2]
[322052585,1712728243273,-500.0,0.00023286,2]
[322052587,1712728243282,-500.0,0.00023286,2]
[322052589,1712728243292,-670.51,0.00023286,2]
[322052592,1712728243302,-500.0,0.00023286,2]
[322052594,1712728243311,-500.0,0.00023286,2]
[322052595,1712728243320,-500.0,0.00023286,2]
[322052598,1712728243329,-151.0,0.00023286,2]
[322052599,1712728243338,-151.0,0.00023286,2]
[322052600,1712728243347,-151.0,0.00023286,2]
[322052601,1712728243360,-151.0,0.00023286,2]
[322052602,1712728243369,-3867.197269,0.00023286,2]
[322052603,1712728243379,-3867.197269,0.00023286,2]
[322052604,1712728243388,-203.24,0.00023287,2]
[322052605,1712728243397,-500.0,0.00023287,2]
[322052606,1712728243407,-189.94811751,0.00023287,2]
[322052607,1712728243416,-154.970933,0.00023287,2]
[322052608,1712728243426,-220.631003,0.00023287,2]
[322052610,1712728243435,-151.611987,0.00023287,2]
[322052612,1712728243444,-151.0,0.00023287,2]
[322052614,1712728243453,-500.0,0.00023287,2]
[322052615,1712728243462,-151.0,0.00023287,2]
[322052616,1712728243471,-500.0,0.00023287,2]
[322052617,1712728243480,-40.50593831,0.00023287,2]
[322052618,1712728243512,-459.49406169,0.00023287,2]
[322052619,1712728243521,-506.14,0.00023287,2]
[322052620,1712728243531,-96.28190831,0.00023287,2]
[322052628,1712728463154,150.0,0.00020745,2]
[322052629,1712728685143,4660.3418194,0.0002064,2]
[322052630,1712728722355,155.91156027,0.00020941,2]
[322052704,1712729211034,215.82383049,0.00021001,2]
[322052728,1712729219306,220.24551673,0.00021001,2]
[322052729,1712729223267,524.8635464,0.00021001,2]
[322052731,1712729236700,283.42171032,0.00021001,2]
[322052732,1712729239692,470.13868753,0.00021001,2]
[322052734,1712729244574,154.98450155,0.00021001,2]
[322052736,1712729251443,193.05887127,0.00021001,2]
[322052738,1712729256653,154.98450155,0.00021001,2]
[322052745,1712729266512,207.29860552,0.00021001,2]
[322052770,1712729366906,150.0,0.00018901,2]
[322052771,1712729418452,10455.90216901,0.0002,2]
[322052806,1712729438460,-1310.27354138,0.0002105,2]
[322052808,1712729438471,-1306.47360055,0.0002105,2]
[322052810,1712729438479,-687.372286,0.00021051,2]
[322052812,1712729438489,-176.987555,0.00021054,2]
[322052814,1712729438497,-245.60818928,0.00021162,2]
[322052816,1712729438506,-155.91156021,0.0002181,2]
[322052818,1712729438514,-488.01479802,0.00021916,2]
[322052820,1712729438523,-300.0,0.00021916,2]
[322052821,1712729438532,-300.0,0.00021916,2]
[322052824,1712729438542,-500.0,0.00021917,2]
[322052825,1712729438551,-500.0,0.00021917,2]
[322052828,1712729438561,-500.0,0.00021917,2]
[322052829,1712729438570,-235.84758409,0.00021917,2]
[322052831,1712729438579,-501.69568531,0.00021917,2]
[322052833,1712729438588,-500.0,0.00021917,2]
[322052835,1712729438598,-500.0,0.00021917,2]
[322052838,1712729438607,-500.0,0.00021917,2]
[322052840,1712729438616,-500.0,0.00021917,2]
[322052842,1712729438626,-500.0,0.00021917,2]
[322052843,1712729438635,-500.0,0.00021917,2]
[322052845,1712729438644,-500.0,0.00021917,2]
[322052847,1712729438653,-500.0,0.00021917,2]
[322052849,1712729438662,-500.0,0.00021917,2]
[322052851,1712729438671,-501.0,0.00021917,2]
[322052853,1712729438681,-500.0,0.00021917,2]
[322052855,1712729438691,-500.0,0.00021917,2]
[322052857,1712729438700,-66.11488424,0.00021917,2]
[322052858,1712729438712,-251.65884391,0.00021917,2]
[322052859,1712729438720,-494.58681738,0.00021917,2]
[322052860,1712729438731,-5.41318262,0.00021917,2]
[322052862,1712729438741,-500.0,0.00021917,2]
[322052864,1712729438750,-161.61681738,0.00021917,2]
[322052882,1712729440582,-338.38318262,0.00021917,2]
[322052883,1712729440591,-500.0,0.00021917,2]
[322052884,1712729440601,-500.0,0.00021917,2]
[322052885,1712729440610,-500.0,0.00021917,2]
[322052886,1712729440619,-330.12,0.00021917,2]
[322052887,1712729440629,-31.67742317,0.00021917,2]
[322052888,1712729440644,-468.32257683,0.00021917,2]
[322052889,1712729440653,-595.54,0.00021917,2]
[322052890,1712729440662,-500.0,0.00021917,2]
[322052891,1712729440671,-523.259385,0.00021917,2]
[322052892,1712729440681,-500.0,0.00022188,2]
[322052893,1712729440690,-500.0,0.00022189,2]
[322052894,1712729440699,-500.0,0.00022189,2]
[322052895,1712729440708,-500.0,0.00022189,2]
[322052896,1712729440717,-500.0,0.00022189,2]
[322052897,1712729440726,-500.0,0.00022189,2]
[322052898,1712729440735,-500.0,0.00022189,2]
[322052899,1712729440744,-500.0,0.00022189,2]
[322052900,1712729440753,-500.0,0.00022189,2]
[322052901,1712729440762,-500.0,0.00022189,2]
[322052902,1712729440771,-500.0,0.00022189,2]
[322052903,1712729440780,-500.0,0.00022189,2]
[322052904,1712729440789,-500.0,0.00022189,2]
[322052905,1712729440798,-248.06530852,0.00022189,2]
[322052906,1712729440807,-500.0,0.00022189,2]
[322052907,1712729440817,-432.81200396,0.00022189,2]
[322052908,1712729440830,-500.0,0.00022189,2]
[322052909,1712729440839,-661.96,0.00022189,2]
[322052910,1712729440852,-802.54,0.00022189,2]
[322052911,1712729440861,-160.14910889,0.00022189,2]
[322052912,1712729440982,-500.0,0.00022189,2]
[322052913,1712729440991,-500.0,0.00022189,2]
[322052914,1712729441000,-533.18935209,0.00022189,2]
[322052915,1712729441010,-500.0,0.00022189,2]
[322052916,1712729441019,-500.0,0.00022189,2]
[322052917,1712729441028,-500.0,0.00022189,2]
[322052918,1712729441037,-500.0,0.00022189,2]
[322052919,1712729441048,-397.7424633,0.00022189,2]
[322052920,1712729441058,-551.81129447,0.00022189,2]
[322052921,1712729441069,-500.0,0.00022189,2]
[322052922,1712729441082,-471.47185933,0.00022189,2]
[322052923,1712729441091,-500.0,0.00022189,2]
[322052924,1712729441101,-500.0,0.00022189,2]
[322052925,1712729441111,-2824.85,0.00022189,2]
[322052926,1712729441120,-500.0,0.00022189,2]
[322052927,1712729441129,-500.0,0.00022189,2]
[322052928,1712729441138,-500.0,0.00022189,2]
[322052929,1712729441147,-500.0,0.00022189,2]
[322052930,1712729441156,-500.0,0.00022189,2]
[322052931,1712729441165,-500.0,0.00022189,2]
[322052932,1712729441174,-500.0,0.00022189,2]
[322052933,1712729441183,-500.0,0.00022189,2]
[322052934,1712729441192,-500.0,0.00022189,2]
[322052935,1712729441201,-500.0,0.00022189,2]
[322052936,1712729441210,-882.73,0.00022189,2]
[322052937,1712729441218,-500.0,0.0002219,2]
[322052938,1712729441227,-500.0,0.0002219,2]
[322052939,1712729441236,-500.0,0.0002219,2]
[322052940,1712729441245,-614.63,0.0002219,2]
[322052941,1712729441255,-781.78,0.0002219,2]
[322052942,1712729441264,-500.0,0.0002219,2]
[322052943,1712729441273,-568.86,0.0002219,2]
[322052944,1712729441282,-500.0,0.0002219,2]
[322052945,1712729441291,-500.0,0.0002219,2]
[322052946,1712729441300,-500.0,0.0002219,2]
[322052947,1712729441309,-500.0,0.00022191,2]
[322052948,1712729441318,-500.0,0.00022191,2]
[322052949,1712729441328,-500.0,0.00022191,2]
[322052950,1712729441338,-500.0,0.00022191,2]
[322052951,1712729441347,-500.0,0.00022191,2]
[322052952,1712729441357,-500.0,0.00022191,2]
[322052953,1712729441366,-500.0,0.00022191,2]
[322052954,1712729441375,-595.54,0.00022191,2]
[322052955,1712729441384,-500.0,0.00022191,2]
[322052956,1712729441393,-500.0,0.00022462,2]
[322052957,1712729441402,-512.27013556,0.00022463,2]
[322052958,1712729441412,-500.0,0.00022463,2]
[322052959,1712729441421,-500.0,0.00022463,2]
[322052960,1712729441430,-500.0,0.00022463,2]
[322052961,1712729441440,-500.0,0.00022463,2]
[322052962,1712729441449,-500.0,0.00022463,2]
[322052963,1712729441458,-500.0,0.00022463,2]
[322052964,1712729441467,-500.0,0.00022463,2]
[322052965,1712729441477,-500.0,0.00022463,2]
[322052966,1712729441486,-500.0,0.00022463,2]
[322052967,1712729441495,-661.96,0.00022463,2]
[322052968,1712729441504,-802.54,0.00022463,2]
[322052969,1712729441514,-500.0,0.00022463,2]
[322052970,1712729441523,-500.0,0.00022463,2]
[322052971,1712729441532,-500.0,0.00022463,2]
[322052972,1712729441541,-500.0,0.00022463,2]
[322052973,1712729441550,-500.0,0.00022463,2]
[322052974,1712729441559,-500.0,0.00022463,2]
[322052975,1712729441569,-500.0,0.00022463,2]
[322052976,1712729441579,-2824.85,0.00022463,2]
[322052977,1712729441588,-500.0,0.00022463,2]
[322052978,1712729441597,-500.0,0.00022463,2]
[322052979,1712729441606,-634.7734702,0.00022463,2]
[322052980,1712729441616,-500.0,0.00022463,2]
[322052981,1712729441625,-500.0,0.00022463,2]
[322052982,1712729441634,-500.0,0.00022463,2]
[322052983,1712729441644,-642.28,0.00022463,2]
[322052984,1712729441653,-500.0,0.00022463,2]
[322052985,1712729441662,-500.0,0.00022463,2]
[322052986,1712729441670,-212.11918038,0.00022463,2]
[322052987,1712729441679,-882.73,0.00022463,2]
[322052988,1712729441688,-12.0200229,0.00022464,2]
[322053047,1712729443550,-487.9799771,0.00022464,2]
[322053049,1712729443560,-500.0,0.00022464,2]
[322053051,1712729443569,-500.0,0.00022464,2]
[322053053,1712729443580,-614.63,0.00022464,2]
[322053055,1712729443589,-781.78,0.00022464,2]
[322053057,1712729443598,-500.0,0.00022464,2]
[322053060,1712729443607,-303.98957915,0.00022464,2]
[322053172,1712729446467,-500.0,0.00022189,2]
[322053173,1712729446477,-500.0,0.00022189,2]
[322053174,1712729446486,-500.0,0.00022463,2]
[322053175,1712729446495,-500.0,0.00022463,2]
[322053176,1712729446504,-264.87042085,0.00022464,2]
[322053177,1712729446513,-500.0,0.00022464,2]
[322053178,1712729446522,-500.0,0.00022464,2]
[322053179,1712729446531,-189.94811751,0.00022465,2]
[322053180,1712729446539,-500.0,0.00022465,2]
[322053181,1712729446548,-500.0,0.00022465,2]
[322053182,1712729446557,-500.0,0.00022465,2]
[322053183,1712729446566,-500.0,0.00022465,2]
[322053184,1712729446575,-595.54,0.00022465,2]
[322053185,1712729446584,-500.0,0.00022465,2]
[322053186,1712729446593,-656.8717219,0.00022637,2]
[322053187,1712729446602,-155.91156021,0.00022679,2]
[322053188,1712729446611,-153.0,0.000227,2]
[322053189,1712729446623,-500.0,0.00022736,2]
[322053190,1712729446636,-352.81675235,0.00022736,2]
[322053191,1712729446648,-471.98725666,0.00022736,2]
[322053192,1712729446659,-569.28904892,0.00022736,2]
[322053193,1712729446671,-500.0,0.00022737,2]
[322053194,1712729446683,-500.0,0.00022737,2]
[322053195,1712729446693,-500.0,0.00022737,2]
[322053196,1712729446703,-500.0,0.00022737,2]
[322053197,1712729446713,-500.0,0.00022737,2]
[322053198,1712729446724,-500.0,0.00022737,2]
[322053199,1712729446736,-608.79359272,0.00022737,2]
[322053200,1712729446747,-500.0,0.00022737,2]
[322053201,1712729446758,-500.0,0.00022737,2]
[322053202,1712729446769,-661.96,0.00022737,2]
[322053203,1712729446781,-802.54,0.00022737,2]
[322053204,1712729446792,-500.0,0.00022737,2]
[322053205,1712729446804,-500.0,0.00022737,2]
[322053206,1712729446815,-500.0,0.00022737,2]
[322053207,1712729446827,-500.0,0.00022737,2]
[322053208,1712729446838,-500.0,0.00022737,2]
[322053209,1712729446851,-611.35604098,0.00022737,2]
[322053210,1712729446861,-500.0,0.00022737,2]
[322053211,1712729446871,-1821.17472159,0.00022737,2]
[322053212,1712729478577,9321.81950964,0.0002,2]
[322053217,1712729567693,10000.0,0.00021001,2]
[322053218,1712729576315,10000.0,0.00021001,2]
[322053220,1712729590084,10000.0,0.00021001,2]
[322053221,1712729598642,10000.0,0.00021001,2]
[322053222,1712729614308,10000.0,0.00021001,2]
[322053223,1712729625681,10000.0,0.00021001,2]
[322053224,1712729633669,200.5898481,0.00020968,2]
[322053226,1712729647748,10000.0,0.00021001,2]
[322053227,1712729668096,434.07968905,0.00020364,2]
[322053229,1712729697552,200.0,0.00020968,2]
[322053230,1712729704160,154.98450155,0.00020967,2]
[322053232,1712729715501,200.0,0.00020364,2]
[322053233,1712729717632,156.21292823,0.00020975,2]
[322053234,1712729738411,10000.0,0.00021001,2]
[322053236,1712729749487,200.0,0.00020364,2]
[322053237,1712729764615,10000.0,0.00021001,2]
[322053238,1712729769482,200.0,0.00020364,2]
[322053239,1712729785483,200.0,0.00020364,2]
[322053240,1712729803488,200.0,0.00020364,2]
[322053241,1712729825494,200.0,0.00020364,2]
[322053242,1712729841494,200.0,0.00020364,2]
[322053243,1712729861495,200.0,0.00020364,2]
[322053244,1712729879558,200.0,0.00020364,2]
[322053247,1712729913495,200.0,0.00020364,2]
[322053248,1712729931490,200.0,0.00020364,2]
[322053250,1712729953499,200.0,0.00020364,2]
[322053252,1712729969260,545.9669776,0.00020364,2]
[322053254,1712730002809,165.003281,0.00020729,2]
[322053256,1712730095442,2342.707352,0.00020523,2]
[322053257,1712730104094,250.0,0.00020571,2]
[322053258,1712730270622,631.33061483,0.00020364,2]
[322053262,1712730427155,1617.59849486,0.00021001,2]
[322053263,1712730428062,282.39298336,0.00021001,2]
[322053264,1712730429071,2616.74714193,0.00021001,2]
[322053265,1712730431366,781.9819512,0.00021001,2]
[322053266,1712730436781,887.0189653,0.00021001,2]
[322053267,1712730437471,181.0843021,0.00021001,2]
[322053268,1712730440155,154.98450155,0.00021001,2]
[322053269,1712730442085,3137.59303007,0.00021001,2]
[322053270,1712730446912,283.42171032,0.00021001,2]
[322053271,1712730451257,470.13868753,0.00021001,2]
[322053272,1712730451760,193.05887127,0.00021001,2]
[322053273,1712730453206,5567.94409063,0.00021001,2]
[322053274,1712730455517,1866.41705732,0.00021001,2]
[322053275,1712730458856,154.98450155,0.00021001,2]
[322053276,1712730464266,154.98450155,0.00021001,2]
[322053277,1712730465327,211.46315052,0.00021001,2]
[322053278,1712730465989,225.55190173,0.00021001,2]
[322053280,1712730479333,3736.78008316,0.00021001,2]
[322053281,1712730480600,300.0,0.00021001,2]
[322053282,1712730481966,300.0,0.00021001,2]
[322053284,1712730550617,185.63459732,0.00021001,2]
[322053285,1712730556618,172.251362,0.00020915,2]
[322053286,1712730571904,663.3214637,0.00018901,2]
[322053310,1712730632774,-6951.21028623,0.00021002,2]
[322053339,1712730638687,-2470.27668541,0.00021002,2]
[322053340,1712730638699,-300.0,0.00021915,2]
[322053341,1712730638709,-158.55609735,0.00022086,2]
[322053342,1712730638720,-300.0,0.00022087,2]
[322053344,1712730638731,-540.83635874,0.00022088,2]
[322053345,1712730638742,-500.0,0.00022187,2]
[322053348,1712730638753,-500.0,0.00022187,2]
[322053350,1712730638763,-500.0,0.00022187,2]
[322053351,1712730638772,-500.0,0.00022188,2]
[322053353,1712730638782,-500.0,0.00022188,2]
[322053355,1712730638792,-500.0,0.00022188,2]
[322053358,1712730638806,-500.0,0.00022188,2]
[322053360,1712730638819,-500.0,0.00022188,2]
[322053362,1712730638830,-500.72848521,0.00022188,2]
[322053363,1712730638840,-500.0,0.00022188,2]
[322053364,1712730638852,-506.77901905,0.00022188,2]
[322053366,1712730638864,-500.0,0.00022188,2]
[322053367,1712730638874,-509.51486224,0.00022188,2]
[322053368,1712730638884,-500.0,0.00022188,2]
[322053369,1712730638895,-500.0,0.00022188,2]
[322053370,1712730638905,-430.89700097,0.00022188,2]
[322053371,1712730638915,-478.32587109,0.00022188,2]
[322053372,1712730638926,-500.0,0.00022188,2]
[322053373,1712730638937,-500.0,0.00022188,2]
[322053374,1712730638948,-500.0,0.00022188,2]
[322053375,1712730638959,-500.0,0.00022188,2]
[322053376,1712730638969,-500.0,0.00022188,2]
[322053377,1712730638980,-500.0,0.00022188,2]
[322053378,1712730638991,-500.0,0.00022188,2]
[322053379,1712730639002,-500.0,0.00022188,2]
[322053380,1712730639013,-500.0,0.00022188,2]
[322053381,1712730639025,-500.0,0.00022188,2]
[322053382,1712730639036,-643.62,0.00022188,2]
[322053383,1712730639048,-517.73284349,0.00022188,2]
[322053384,1712730639060,-500.0,0.00022188,2]
[322053385,1712730639071,-500.0,0.00022188,2]
[322053386,1712730639082,-500.0,0.00022188,2]
[322053387,1712730639092,-500.0,0.00022188,2]
[322053388,1712730639102,-813.89,0.00022188,2]
[322053389,1712730639112,-619.29,0.00022188,2]
[322053390,1712730639122,-500.0,0.00022188,2]
[322053391,1712730639132,-512.2127395,0.00022188,2]
[322053392,1712730639143,-500.0,0.00022188,2]
[322053393,1712730639153,-500.0,0.00022188,2]
[322053394,1712730639164,-500.0,0.00022188,2]
[322053395,1712730639176,-500.0,0.00022188,2]
[322053396,1712730639190,-500.0,0.00022188,2]
[322053397,1712730639201,-500.0,0.00022188,2]
[322053398,1712730639211,-500.0,0.00022188,2]
[322053399,1712730639222,-500.0,0.00022188,2]
[322053400,1712730639234,-504.02862439,0.00022188,2]
[322053401,1712730639245,-563.12,0.00022188,2]
[322053402,1712730639258,-500.0,0.00022188,2]
[322053403,1712730639268,-500.0,0.00022188,2]
[322053404,1712730639278,-500.0,0.00022188,2]
[322053405,1712730639290,-789.35,0.00022188,2]
[322053406,1712730639300,-500.0,0.00022188,2]
[322053407,1712730639310,-506.88398481,0.00022188,2]
[322053408,1712730639320,-2826.34,0.00022188,2]
[322053409,1712730639330,-500.0,0.00022188,2]
[322053410,1712730639340,-500.0,0.00022188,2]
[322053411,1712730639352,-500.0,0.00022188,2]
[322053412,1712730639361,-500.0,0.00022188,2]
[322053413,1712730639371,-500.0,0.00022188,2]
[322053414,1712730639382,-575.23,0.00022188,2]
[322053415,1712730639392,-500.0,0.00022188,2]
[322053416,1712730639403,-500.0,0.00022188,2]
[322053417,1712730639414,-500.0,0.00022188,2]
[322053418,1712730639424,-500.0,0.00022188,2]
[322053419,1712730639434,-500.0,0.00022188,2]
[322053420,1712730639443,-500.0,0.00022188,2]
[322053421,1712730639454,-500.0,0.00022188,2]
[322053422,1712730639464,-500.0,0.00022188,2]
[322053423,1712730639475,-500.0,0.00022188,2]
[322053424,1712730639485,-500.0,0.00022188,2]
[322053425,1712730639496,-500.0,0.00022188,2]
[322053426,1712730639506,-500.0,0.00022188,2]
[322053427,1712730639516,-500.0,0.00022188,2]
[322053428,1712730639526,-889.41,0.00022188,2]
[322053429,1712730639536,-500.0,0.00022188,2]
[322053430,1712730639546,-502.94347435,0.00022188,2]
[322053431,1712730639557,-500.0,0.00022188,2]
[322053432,1712730639568,-537.16972487,0.00022188,2]
[322053433,1712730639579,-500.0,0.00022188,2]
[322053434,1712730639589,-500.0,0.00022189,2]
[322053435,1712730639599,-500.0,0.00022189,2]
[322053436,1712730639609,-500.0,0.00022189,2]
[322053437,1712730639619,-500.0,0.00022189,2]
[322053438,1712730639630,-500.0,0.00022189,2]
[322053439,1712730639641,-500.0,0.00022189,2]
[322053440,1712730639651,-500.0,0.00022189,2]
[322053441,1712730639661,-500.0,0.00022189,2]
[322053442,1712730639672,-500.0,0.00022189,2]
[322053443,1712730639682,-500.0,0.00022189,2]
[322053444,1712730639692,-500.0,0.00022189,2]
[322053445,1712730639703,-232.63186136,0.00022189,2]
[322053446,1712730639713,-500.0,0.00022189,2]
[322053447,1712730639723,-500.0,0.00022189,2]
[322053448,1712730639734,-500.0,0.00022189,2]
[322053449,1712730639744,-500.0,0.00022189,2]
[322053450,1712730639754,-500.0,0.00022189,2]
[322053451,1712730639765,-500.0,0.00022189,2]
[322053452,1712730639926,-500.0,0.00022189,2]
[322053453,1712730639938,-503.72671144,0.00022189,2]
[322053454,1712730639947,-500.0,0.00022189,2]
[322053455,1712730639957,-500.0,0.00022189,2]
[322053456,1712730639966,-744.45461814,0.00022361,2]
[322053457,1712730639976,-1158.6624007,0.00022402,2]
[322053458,1712730639986,-5211.81579744,0.00022417,2]
[322053459,1712730639995,-243.98102097,0.0002246,2]
[322053460,1712730640004,-500.0,0.00022461,2]
[322053461,1712730640013,-500.0,0.00022461,2]
[322053462,1712730640022,-500.0,0.00022461,2]
[322053463,1712730640032,-598.39,0.00022461,2]
[322053464,1712730640041,-518.85610216,0.00022461,2]